bitfinex/quotes_ETHUSD_20220106
["timestamp","ask_amount","ask_price","bid_price","bid_amount"]
[1641481555377,0.00113685,3372.4,3372.3,7.65126752]
[1641481555575,0.00113685,3372.4,3372.3,8.65126752]
[1641481557276,0.00113685,3372.4,3372.3,12.10126752]
[1641481557920,0.00033685,3372.4,3372.3,12.10126752]
[1641481558219,0.00033685,3372.4,3372.3,7.65126752]
[1641481559118,0.00033685,3372.4,3372.3,8.71478791]
[1641481559520,0.00033685,3372.4,3372.3,11.55668268]
[1641481559722,0.00033685,3372.4,3372.3,3.90668268]
[1641481559920,0.00033685,3372.4,3372.3,2.84316229]
[1641481560126,0.00033685,3372.4,3372.3,1.84316229]
[1641481560424,0.00033685,3372.4,3372.3,2.84316229]
[1641481560822,0.00033685,3372.4,3372.3,0.00126752]
[1641481561482,0.74158,3372.0,3371.8,0.00227369]
[1641481561673,0.74158,3372.0,3371.8,2.16382624]
[1641481561875,0.74158,3372.0,3371.8,2.16155255]
[1641481562073,0.74158,3372.0,3371.9,0.00250527]
[1641481562272,0.74158,3372.0,3371.9,1.01328639]
[1641481562675,0.74158,3372.0,3371.9,0.00250527]
[1641481563474,0.74158,3372.0,3371.3,0.00591581]
[1641481563675,0.74158,3372.0,3371.8,1.25189854]
[1641481564172,0.74158,3372.0,3371.9,0.00250527]
[1641481564573,0.74158,3372.0,3370.9,2.21207693]
[1641481564574,0.74158,3372.0,3371.2,0.00648424]
[1641481564774,0.74158,3372.0,3371.7,0.00364212]
[1641481564974,0.74158,3372.0,3371.0,2.21969801]
[1641481564975,0.74162,3371.7,3371.0,2.21969801]
[1641481565219,0.74165,3371.5,3371.1,1.14859542]
[1641481565422,0.74165,3371.5,3371.3,1.8039252]
[1641481565820,0.74165,3371.5,3371.4,0.00534739]
[1641481566025,1.4833,3371.6,3371.4,0.00534739]
[1641481566221,1.4833,3371.6,3370.6,0.00989478]
[1641481566222,16.69348618,3371.5,3370.6,0.00989478]
[1641481566422,8.25,3371.4,3370.6,0.00989478]
[1641481566623,9.43488,3371.3,3370.5,0.6313032]
[1641481566822,1.48383,3371.0,3370.6,2.10818905]
[1641481567024,2.22574,3371.0,3370.6,2.10818905]
[1641481567221,0.00170527,3370.9,3370.6,2.10818905]
[1641481567622,0.00113685,3370.8,3370.5,3.0]
[1641481568023,1.48509685,3370.8,3370.5,3.0]
[1641481568627,9.2,3370.6,3370.5,3.0]
[1641481568825,9.2,3370.6,3370.5,2.85]
[1641481569076,1.48414,3370.2,3369.9,2.17218353]
[1641481569575,1.48414,3370.2,3369.6,1.4965461]
[1641481569576,8.1,3370.0,3369.6,1.4965461]
[1641481569771,1.83552,3369.9,3369.6,1.4965461]
[1641481569970,0.01293103,3369.7,3369.1,0.32798526]
[1641481570174,0.74226,3369.5,3369.1,0.32798526]
[1641481570371,2.759952,3370.2,3369.2,0.00284211]
[1641481570574,0.36383797,3370.1,3369.2,0.00284211]
[1641481570776,0.74227,3369.5,3368.8,0.00511581]
[1641481570972,0.74227,3369.5,3368.3,1.10709648]
[1641481571172,0.74222,3369.1,3368.3,1.10709648]
[1641481571371,0.74222,3369.1,3368.4,0.0073895]
[1641481571573,1.4846,3369.7,3368.4,0.0073895]
[1641481572173,1.4846,3369.7,3368.9,1.19094993]
[1641481572732,1.4846,3369.7,3369.6,2.0159183]
[1641481573327,0.0001,3369.7,3369.6,2.0159183]
[1641481573522,0.0001,3369.7,3369.6,1.9659183]
[1641481574623,0.0001,3369.7,3369.6,2.9659183]
[1641481574824,0.07393932,3370.5,3369.6,2.9659183]
[1641481574825,0.00010527,3370.0,3369.6,2.9659183]
[1641481575024,0.74155,3372.6,3369.9,0.01250735]
[1641481575225,2.759952,3372.6,3371.6,0.1533]
[1641481575423,0.98660661,3372.7,3371.6,0.1533]
[1641481575928,0.01477901,3372.6,3372.5,2.06968555]
[1641481576125,2.96477901,3372.6,3372.5,2.06968555]
[1641481576325,0.01477901,3372.6,3372.5,2.06968555]
[1641481576575,0.01477901,3372.6,3371.9,1.34761519]
[1641481576576,5.81477901,3372.6,3372.0,8.555e-05]
[1641481576773,2.86477901,3372.6,3371.9,1.34761519]
[1641481576974,0.01421059,3372.5,3371.9,1.34761519]
[1641481577274,0.01364217,3372.4,3372.0,1.89726108]
[1641481577472,0.01364217,3372.4,3372.0,2.89726108]
[1641481577676,0.01307374,3372.3,3372.1,0.74124]
[1641481578073,0.01250532,3372.2,3372.1,12.84124]
[1641481578478,5.32e-06,3372.2,3372.1,13.58253]
[1641481578674,2.74130845,3373.9,3372.5,0.44462]
[1641481578874,0.07393315,3373.9,3373.0,0.74103]
[1641481579074,3.65398191,3374.4,3373.1,11.1]
[1641481579075,0.98660661,3374.4,3373.1,11.1]
[1641481579276,1.97700844,3374.9,3373.7,0.01204859]
[1641481579477,1.97700844,3374.9,3374.6,1.87724701]
[1641481579675,0.00171059,3374.7,3374.6,1.87724701]
[1641481580075,0.6757337,3375.0,3374.6,1.87724701]
[1641481580076,0.00284743,3374.9,3374.6,1.87724701]
[1641481580526,0.00227901,3374.8,3374.6,1.8812097]
[1641481580732,0.00227901,3374.8,3374.7,9.58176463]
[1641481581032,0.00227901,3374.8,3374.7,2.28176463]
[1641481581227,0.00227901,3374.8,3373.9,1.48155]
[1641481581228,3.75227901,3374.8,3373.9,1.48155]
[1641481581434,3.75227901,3374.8,3373.3,3.8795]
[1641481581629,3.75227901,3374.8,3374.0,0.00226838]
[1641481581826,3.75227901,3374.8,3373.4,0.00567892]
[1641481581827,0.74112,3374.6,3373.4,0.00567892]
[1641481582026,0.74112,3374.6,3372.9,0.00852104]
[1641481582229,0.351,3374.5,3374.1,2.00385744]
[1641481582629,0.351,3374.5,3374.2,0.00113153]
[1641481582929,2.51488682,3374.7,3374.2,0.00113153]
[1641481583131,2.51488682,3374.4,3374.2,0.00113153]
[1641481583830,2.03928682,3374.4,3374.2,0.00113153]
[1641481584081,2.51468743,3374.9,3374.3,11.05]
[1641481584283,1.97700844,3375.8,3374.5,11.1]
[1641481584480,4.07991343,3376.5,3374.8,0.01211189]
[1641481584677,4.07991343,3376.5,3376.4,12.02700408]
[1641481584878,4.07991343,3376.5,3376.4,10.95]
[1641481585077,4.08900821,3376.5,3376.4,1.0]
[1641481585281,0.79993003,3376.5,3375.8,1.48063]
[1641481585481,0.79993003,3376.5,3375.5,1.98576769]
[1641481585482,1.95601952,3376.4,3375.5,1.98576769]
[1641481585680,0.00852635,3376.4,3375.5,1.98576769]
[1641481585877,0.00795793,3376.3,3375.5,1.98576769]
[1641481586079,0.00795793,3376.3,3374.8,3.76438]
[1641481586284,0.00738951,3376.2,3374.8,1.4812093]
[1641481586481,0.00738951,3376.2,3374.6,0.00170527]
[1641481586679,0.00682108,3376.1,3374.6,0.00170527]
[1641481586879,0.00682108,3376.1,3374.6,0.7407299]
[1641481587080,0.00625266,3376.0,3374.8,1.188105]
[1641481587280,0.00625266,3376.0,3374.8,3.0]
[1641481587482,0.00568424,3375.9,3374.8,3.0]
[1641481587931,0.00511581,3375.8,3374.8,3.0]
[1641481588332,0.00454739,3375.7,3374.8,3.0]
[1641481588732,0.00397897,3375.6,3374.8,3.0]
[1641481588936,1.94909992,3375.6,3374.8,3.0]
[1641481589134,0.00341054,3375.5,3374.8,3.0]
[1641481589433,0.00284212,3375.4,3374.8,3.0]
[1641481589833,0.0022737,3375.3,3374.8,3.0]
[1641481590234,0.00170527,3375.2,3374.8,3.0]
[1641481590434,0.351,3375.1,3374.8,3.0]
[1641481590635,0.35213685,3375.1,3374.8,3.0]
[1641481590835,3.91292677,3375.0,3374.8,3.0]
[1641481591034,11.401,3374.9,3374.7,3.684e-05]
[1641481591235,11.41478108,3374.9,3374.7,3.684e-05]
[1641481591485,11.05,3374.8,3373.7,1.70044967]
[1641481591772,3.73853799,3374.7,3373.8,0.00511582]
[1641481591971,0.74126,3374.3,3373.8,0.00511582]
[1641481592279,0.74126,3374.3,3373.6,0.00625266]
[1641481592280,2.11626992,3374.1,3373.6,0.00625266]
[1641481592472,3.33456085,3374.2,3373.6,0.00625266]
[1641481592673,0.0011,3374.9,3373.7,11.05]
[1641481592873,0.0011,3374.9,3374.8,0.01218405]
[1641481593071,1.48781595,3374.7,3374.4,0.01286063]
[1641481593271,1.48781595,3374.7,3373.7,11.05]
[1641481593472,1.48781595,3374.7,3374.5,0.00113685]
[1641481593874,1.48781595,3374.7,3373.9,0.00454739]
[1641481594077,1.48781595,3374.7,3373.7,1.05671961]
[1641481595079,1.48781595,3374.7,3374.1,1.60653445]
[1641481595326,1.48781595,3374.7,3374.3,1.35389842]
[1641481595728,1.48781595,3374.7,3374.4,0.00170527]
[1641481602924,1.48781595,3374.7,3374.4,2.01485422]
[1641481603125,1.48781595,3374.7,3374.4,0.00170527]
[1641481603327,1.48781595,3374.7,3374.5,0.00113685]
[1641481603525,1.48781595,3374.7,3374.4,0.00170527]
[1641481603726,1.48781595,3374.7,3374.2,0.00284212]
[1641481604127,3.64659834,3374.7,3374.2,0.00284212]
[1641481604328,1.0372,3374.1,3373.8,1.4818563]
[1641481604531,11.05,3374.6,3372.7,5.40926826]
[1641481604532,9.31239644,3374.0,3372.7,4.20326826]
[1641481604728,9.31239644,3374.0,3373.9,0.00170527]
[1641481605425,11.07955853,3374.0,3372.9,2.21273404]
[1641481605625,11.07955853,3374.0,3373.2,0.07244076]
[1641481606026,0.01239644,3374.0,3373.3,0.00511581]
[1641481606226,0.35270527,3374.5,3373.3,0.00511581]
[1641481606478,0.00170527,3374.5,3373.3,0.00511581]
[1641481606680,0.00113685,3374.4,3373.3,0.00511581]
[1641481607078,0.00170527,3374.5,3373.3,0.00511581]
[1641481607277,0.00170527,3374.5,3373.7,1.94627881]
[1641481607475,0.00113685,3374.4,3373.7,1.94627881]
[1641481607677,1.48781595,3374.7,3373.8,1.12110599]
[1641481607678,1.19683678,3374.7,3373.8,1.12110599]
[1641481607876,1.19683678,3374.7,3373.8,1.12224284]
[1641481608076,0.00113684,3374.6,3373.9,0.00284212]
[1641481609077,0.00113684,3374.6,3374.0,0.7409924]
[1641481609477,0.00113684,3374.6,3374.1,0.00170527]
[1641481609878,0.00113684,3374.6,3373.6,1.482007]
[1641481609879,0.00113684,3374.6,3373.8,0.00341055]
[1641481610084,0.01253847,3374.2,3373.8,0.00341055]
[1641481610325,0.01253847,3374.2,3373.7,0.00397897]
[1641481610525,0.01253847,3374.2,3372.9,1.482286]
[1641481610728,0.01253847,3374.2,3373.8,0.4013079]
[1641481610923,0.01253847,3374.2,3373.8,2.09896043]
[1641481611126,0.01253847,3374.2,3373.9,0.00284212]
[1641481611924,1.83774771,3374.1,3373.9,0.00284212]
[1641481612225,1.83774771,3374.1,3372.9,2.61378225]
[1641481612226,1.83774771,3374.1,3373.4,0.00568424]
[1641481612623,1.83774771,3374.1,3373.0,0.00795793]
[1641481612824,1.83774771,3374.0,3373.4,0.40146729]
[1641481613228,1.00136076,3374.3,3373.8,1.41875652]
[1641481613425,1.3030306,3374.6,3374.0,11.05]
[1641481613626,1.3030306,3374.6,3373.6,2.0006398]
[1641481613627,1.3030306,3374.6,3373.9,0.00284212]
[1641481613826,1.3030306,3374.6,3373.7,1.0]
[1641481613827,1.3030306,3374.6,3374.1,0.00170527]
[1641481614102,3.49070706,3374.5,3373.8,0.00341055]
[1641481614485,3.49070706,3374.5,3373.7,0.00397897]
[1641481614685,3.49070706,3374.5,3373.2,0.00682109]
[1641481615085,2.1888133,3374.5,3373.4,1.48907604]
[1641481615484,0.00113684,3374.6,3373.6,1.19182518]
[1641481615886,0.00113684,3374.6,3373.6,1.04580415]
[1641481616186,0.00454739,3374.5,3373.6,1.04580415]
[1641481616587,0.00397897,3374.4,3374.1,1.74339123]
[1641481616986,0.00341054,3374.3,3374.1,1.74339123]
[1641481617390,0.00284212,3374.2,3374.1,1.74339123]
[1641481617726,0.00511581,3374.2,3374.1,1.74339123]
[1641481619625,0.00511581,3374.2,3374.1,12.79339123]
[1641481620125,1.19683678,3374.7,3374.6,1.27065564]
[1641481621778,1.19683678,3374.7,3374.5,1.74073]
[1641481621779,1.19683678,3374.7,3374.5,0.74073]
[1641481621977,1.19683678,3374.7,3374.0,1.48907604]
[1641481622382,1.19683678,3374.7,3374.2,0.00227369]
[1641481622979,1.19683678,3374.7,3374.2,0.74326659]
[1641481623475,1.19683678,3374.7,3374.3,0.00170527]
[1641481624877,1.19683678,3374.7,3374.4,0.7409364]
[1641481625522,1.19683678,3374.7,3374.6,4.63134237]
[1641481625729,1.19683678,3374.7,3374.6,1.33134237]
[1641481626523,1.19683678,3374.7,3374.6,1.33530521]
[1641481627123,1.19683678,3374.7,3374.6,0.00396284]
[1641481628324,1.19683678,3374.7,3374.5,1.23251632]
[1641481629580,1.19683678,3374.7,3374.5,2.71423742]
[1641481630177,0.74081,3375.8,3374.9,0.2222757]
[1641481630178,2.58787334,3375.3,3374.9,0.2222757]
[1641481630381,0.98650691,3375.6,3374.2,0.00227369]
[1641481630382,0.7477517,3374.5,3374.2,0.00227369]
[1641481630583,0.01239621,3374.3,3373.4,2.99212618]
[1641481631080,0.01239621,3374.3,3374.0,0.00113685]
[1641481631483,0.01239621,3374.3,3373.7,2.19128377]
[1641481631681,0.01239621,3374.3,3373.8,0.0022737]
[1641481632180,0.01239621,3374.3,3373.6,0.00341054]
[1641481632181,0.74126,3374.0,3373.6,0.00341054]
[1641481632583,0.74126,3374.0,3373.1,0.00625266]
[1641481632824,2.83781839,3373.9,3373.4,0.00454739]
[1641481633028,2.83781839,3373.9,3373.0,0.00682108]
[1641481633029,0.351,3373.9,3373.0,0.00682108]
[1641481633229,0.74146,3373.5,3373.0,0.00682108]
[1641481633425,0.351,3373.4,3372.9,1.87323952]
[1641481633826,0.351,3373.4,3373.0,0.00682108]
[1641481634225,0.351,3373.4,3372.7,0.00852635]
[1641481634226,0.74147,3373.2,3372.7,0.00852635]
[1641481634431,1.09247,3373.2,3372.7,0.00852635]
[1641481634627,1.09247,3373.2,3372.6,0.00909478]
[1641481635026,1.09247,3373.2,3372.7,1.81690493]
[1641481635426,2.22429085,3373.1,3372.8,0.00795793]
[1641481636025,0.7414,3373.0,3372.8,0.00795793]
[1641481637479,0.351,3373.2,3372.8,0.00795793]
[1641481637480,1.09237,3373.2,3372.8,0.00795793]
[1641481637680,5.55921943,3372.9,3372.8,0.00795793]
[1641481638180,2.25921943,3372.9,3372.8,0.00795793]
[1641481638384,0.351,3373.2,3372.8,0.00795793]
[1641481639183,1.153025,3372.7,3372.2,1.03789]
[1641481639387,1.153025,3372.7,3371.8,4.75508062]
[1641481639388,0.351,3372.6,3371.8,3.34079258]
[1641481639583,0.351,3372.6,3372.4,1.21981745]
[1641481639982,2.61082641,3372.6,3372.5,0.00170527]
[1641481640223,2.61082641,3372.6,3372.5,1.71308965]
[1641481640432,2.00592641,3372.6,3372.5,1.71308965]
[1641481641824,2.00592641,3372.6,3372.5,1.71403983]
[1641481642925,1.153025,3372.7,3372.5,2.01403983]
[1641481643327,1.153025,3372.7,3372.6,9.95113685]
[1641481643530,1.153025,3372.7,3372.6,0.00113685]
[1641481644187,1.894545,3372.7,3372.6,0.00113685]
[1641481644385,11.05,3372.3,3370.2,4.9978326]
[1641481644586,11.05,3372.3,3372.1,5.46e-05]
[1641481644587,13.61652558,3372.2,3372.1,5.46e-05]
[1641481644785,0.74199,3371.7,3371.1,2.5063365]
[1641481644984,0.74199,3371.7,3371.1,1.2398365]
[1641481644985,11.06202813,3371.2,3371.1,1.2398365]
[1641481645184,9.4,3371.1,3370.6,6.79666849]
[1641481645384,12.6346918,3370.7,3370.6,5.53006849]
[1641481645584,11.16344515,3370.7,3370.6,4.29856849]
[1641481645784,11.16344515,3370.7,3369.6,1.32384954]
[1641481646187,11.16344515,3370.7,3370.1,0.01421058]
[1641481646384,0.74203,3370.4,3370.1,0.01421058]
[1641481646586,0.351,3370.3,3370.1,0.01421058]
[1641481647823,0.351,3370.3,3370.1,2.61421058]
[1641481648222,0.351,3370.3,3370.2,0.01364216]
[1641481648422,9.351,3370.3,3370.2,0.01364216]
[1641481648825,0.351,3370.3,3370.2,0.01364216]
[1641481649428,0.98391961,3370.7,3370.2,5.36364216]
[1641481649624,0.98391961,3370.7,3370.6,1.02123609]
[1641481649824,0.98391961,3370.7,3370.6,3.1415154]
[1641481650024,0.98391961,3370.7,3370.6,3.45288387]
[1641481650226,0.98391961,3370.7,3370.6,8.55288387]
[1641481650427,0.98391961,3371.1,3370.6,8.55288387]
[1641481650726,0.98391961,3371.1,3370.8,0.51918]
[1641481651124,0.98391961,3371.1,3370.9,0.0096632]
[1641481651329,6.15291961,3371.8,3370.9,0.0096632]
[1641481651579,6.15291961,3371.8,3371.1,1.21407731]
[1641481651882,0.98391961,3371.8,3371.2,0.52703793]
[1641481652079,0.98391961,3371.8,3371.2,1.52703793]
[1641481652381,1.49482764,3372.5,3372.4,2.04736995]
[1641481652778,1.49482764,3372.5,3372.4,2.04850679]
[1641481653279,1.49482764,3372.5,3372.4,0.00113684]
[1641481653681,1.49482764,3372.5,3372.3,0.00170527]
[1641481654078,1.49482764,3372.5,3372.4,1.14559597]
[1641481654479,1.49482764,3372.5,3372.4,1.72078375]
[1641481655523,1.49482764,3372.5,3372.4,3.31263224]
[1641481655729,0.00170527,3373.1,3372.4,3.31263224]
[1641481655730,0.00170527,3373.1,3372.5,11.05]
[1641481655921,0.00170527,3373.1,3372.7,0.51882]
[1641481656121,0.0022737,3373.0,3372.7,0.81882]
[1641481656522,2.56125666,3374.2,3373.5,1.26517611]
[1641481656721,1.96683057,3374.2,3373.5,1.26517611]
[1641481656921,0.00568424,3373.9,3373.5,1.26517611]
[1641481657122,0.00568424,3373.9,3373.5,1.56517611]
[1641481657420,0.00511581,3373.8,3373.2,1.4821519]
[1641481657621,0.00511581,3373.8,3373.6,1.4820573]
[1641481657823,0.00454739,3373.7,3373.6,1.83986444]
[1641481658225,0.00625266,3373.7,3373.6,1.83986444]
[1641481659075,0.00625266,3373.7,3373.6,2.13829637]
[1641481659873,0.00625266,3373.7,3373.6,2.43829637]
[1641481663027,3.40986245,3373.7,3373.6,2.43829637]
[1641481663629,3.40986245,3373.7,3373.6,2.13829637]
[1641481663827,4.39675318,3373.7,3373.6,2.13829637]
[1641481664429,4.34675318,3373.7,3373.6,2.13829637]
[1641481664628,4.34675318,3373.7,3373.6,2.14057006]
[1641481665128,3.35986245,3373.7,3373.6,2.14057006]
[1641481665527,3.35986245,3373.7,3373.6,2.44057006]
[1641481665728,3.35986245,3373.7,3373.6,0.00227369]
[1641481665930,6.24921601,3373.7,3373.6,0.00227369]
[1641481666129,16.74309746,3373.7,3373.5,0.29618193]
[1641481666328,11.89535266,3373.6,3373.5,0.29618193]
[1641481666779,12.24635266,3373.6,3373.5,0.29618193]
[1641481667175,12.24635266,3373.6,3373.1,1.82959822]
[1641481667176,9.34535266,3373.2,3373.1,1.82959822]
[1641481667375,3.74535266,3373.2,3373.1,1.82959822]
[1641481668176,0.84535266,3373.2,3373.1,1.82959822]
[1641481668978,0.84535266,3372.9,3372.8,0.07290958]
[1641481669176,3.49535266,3372.9,3372.4,0.51903]
[1641481669382,3.49535266,3372.9,3372.8,0.00454739]
[1641481669778,6.00986245,3372.9,3372.8,0.00454739]
[1641481670077,6.00986245,3372.9,3372.0,3.9847]
[1641481670078,6.75142245,3372.9,3372.6,2.01786747]
[1641481670325,6.75142245,3372.9,3372.6,2.01578747]
[1641481670528,6.75142245,3372.9,3372.7,0.00266581]
[1641481670724,6.71216245,3372.9,3372.7,0.00266581]
[1641481671526,8.23103338,3372.8,3372.7,0.00266581]
[1641481672726,11.55609266,3372.7,3372.6,1.99819328]
[1641481673126,11.55609266,3372.7,3372.6,1.98685328]
[1641481673425,6.95609266,3372.7,3372.6,1.92293328]
[1641481673626,9.47060245,3372.7,3372.6,1.92376323]
[1641481673829,3.32060245,3372.7,3372.6,1.92376323]
[1641481674678,0.80609266,3372.2,3372.1,1.4828555]
[1641481674880,0.80609266,3372.2,3372.1,3.16128428]
[1641481675078,0.80609266,3372.2,3372.1,3.16469482]
[1641481675479,0.80609266,3372.2,3372.1,4.28854506]
[1641481676180,0.8891,3372.2,3372.1,3.16469482]
[1641481676482,0.8891,3372.2,3372.1,0.00341054]
[1641481676781,0.8891,3372.2,3371.5,0.00682108]
[1641481676982,0.8891,3372.2,3371.7,0.51915]
[1641481677382,0.8891,3371.8,3371.2,1.55731]
[1641481677584,0.8891,3371.6,3370.7,3.7256]
[1641481677830,3.68972624,3371.6,3371.3,0.00284212]
[1641481678035,0.8891,3371.6,3371.3,0.00284212]
[1641481678231,0.8891,3371.6,3371.0,0.3]
[1641481678432,2.08638364,3371.5,3371.0,0.3]
[1641481678634,2.37278,3371.4,3371.1,0.00397897]
[1641481678932,1.6309,3371.4,3371.1,0.00397897]
[1641481679734,1.6309,3371.4,3370.8,1.87458023]
[1641481679735,1.6309,3371.4,3370.9,0.74688222]
[1641481680134,1.6309,3371.4,3371.0,0.00454739]
[1641481680534,0.8891,3371.2,3371.0,0.00454739]
[1641481680937,0.98006738,3371.3,3371.0,0.00454739]
[1641481680938,8.13096,3371.1,3371.0,0.00454739]
[1641481681137,1.63096,3371.1,3370.9,0.00511582]
[1641481681583,0.8891,3371.0,3370.9,0.00511582]
[1641481681881,0.8891,3371.0,3370.9,0.74692432]
[1641481684980,0.8891,3371.0,3370.9,4.69692432]
[1641481685230,0.8891,3371.0,3370.9,0.74692432]
[1641481685627,0.98006738,3371.3,3371.1,1.29391971]
[1641481685825,0.98006738,3371.3,3371.1,2.03547281]
[1641481686026,0.07291531,3371.7,3371.2,0.00341055]
[1641481686227,0.07291531,3371.7,3371.4,0.44496]
[1641481686427,1.30846437,3372.1,3371.8,1.1853525]
[1641481686625,0.00446437,3372.1,3371.8,1.1853525]
[1641481686826,0.00446437,3372.1,3371.9,0.00113685]
[1641481687026,1.95897768,3372.3,3371.9,0.00113685]
[1641481687233,1.95897768,3372.5,3372.1,0.7415055]
[1641481687428,1.95897768,3372.5,3372.3,1.71625826]
[1641481687627,2.70048768,3372.5,3372.3,1.71625826]
[1641481687829,2.70048768,3372.5,3372.3,2.16117826]
[1641481688127,1.95897768,3372.7,3372.3,2.16117826]
[1641481688527,0.00284211,3372.6,3372.3,2.16117826]
[1641481688738,0.00284211,3372.6,3372.3,4.38563516]
[1641481688973,1.48287,3373.2,3372.3,4.38563516]
[1641481688974,0.00227369,3372.5,3372.3,4.38563516]
[1641481689374,0.00170527,3372.4,3372.3,4.38563516]
[1641481690175,1.95897768,3373.1,3372.4,11.05]
[1641481690378,3.27254838,3373.9,3372.4,11.05]
[1641481690379,3.27254838,3373.9,3372.7,0.7411634]
[1641481690580,3.27254838,3373.9,3373.0,2.2231949]
[1641481691073,0.00454738,3373.8,3373.2,0.74105]
[1641481691275,0.00454738,3373.8,3373.6,0.88924]
[1641481691581,0.00397896,3373.7,3373.6,2.3712963]
[1641481692382,0.00397896,3373.7,3373.6,7.23198551]
[1641481692575,0.00397896,3373.7,3373.6,5.08618833]
[1641481692826,0.00397896,3373.7,3373.6,4.99015219]
[1641481693029,0.00397896,3373.7,3373.6,3.3597184]
[1641481693627,3.27254838,3374.7,3373.6,3.3597184]
[1641481693628,3.27254838,3374.7,3374.0,0.74099]
[1641481693932,6.91102,3374.9,3374.6,2.08180879]
[1641481694127,6.91102,3374.9,3374.7,0.7410256]
[1641481694430,0.89535266,3374.8,3374.6,2.37822879]
[1641481694830,0.00568424,3374.7,3374.6,3.11913879]
[1641481695227,0.00568424,3374.7,3374.5,1.3337056]
[1641481695228,0.00568424,3374.7,3374.5,1.11041326]
[1641481695427,6.17,3374.9,3374.8,1.24837187]
[1641481695929,6.17113684,3374.9,3374.8,1.24837187]
[1641481696328,6.17113684,3374.9,3374.8,1.98917257]
[1641481696581,0.00113684,3374.9,3374.8,1.98917257]
[1641481696781,1.37904469,3375.6,3375.1,0.29626]
[1641481696982,1.37904469,3375.6,3375.1,0.64726]
[1641481697282,6.94,3375.8,3375.2,13.2716763]
[1641481697283,2.99134841,3375.7,3375.2,13.2716763]
[1641481697483,1.30607647,3376.0,3375.4,11.05]
[1641481697484,0.95812005,3376.0,3375.4,11.05]
[1641481697685,3.08913286,3376.7,3375.6,11.05]
[1641481697880,13.2319068,3377.0,3376.7,1.83978894]
[1641481697881,8.0629068,3377.0,3376.7,1.83978894]
[1641481698680,0.6757337,3377.0,3376.7,1.83978894]
[1641481698880,0.6757337,3377.0,3376.7,4.06105884]
[1641481699283,0.6757337,3377.0,3376.8,1.13880342]
[1641481699685,0.4547337,3377.0,3376.8,1.13880342]
[1641481699883,4.11462472,3377.4,3376.9,11.05]
[1641481700229,0.00909478,3377.3,3377.0,1.0]
[1641481700624,0.00852635,3377.2,3377.0,1.480336]
[1641481700828,3.27254838,3377.6,3377.4,1.20560891]
[1641481701025,3.27254838,3377.6,3377.4,1.94585251]
[1641481701224,0.00170527,3377.5,3377.4,1.94585251]
[1641481701424,8.47771847,3378.1,3377.4,1.94585251]
[1641481701627,2.10348984,3378.5,3377.4,1.94585251]
[1641481701628,3.31916326,3378.2,3377.4,1.94585251]
[1641481701823,0.00284212,3378.0,3377.4,0.7402436]
[1641481702226,0.0022737,3377.9,3377.0,1.480336]
[1641481702426,0.0022737,3377.9,3376.4,3.8863]
[1641481702427,2.03603854,3377.9,3377.1,1.6935123]
[1641481702625,0.00170527,3377.8,3377.1,0.00227369]
[1641481702829,0.01205005,3377.2,3376.1,0.07296122]
[1641481703025,0.01205005,3377.2,3376.9,0.00113685]
[1641481703626,0.01205005,3377.2,3376.9,2.02307624]
[1641481703826,0.01205005,3377.2,3375.6,0.00852635]
[1641481704087,0.00341054,3377.7,3376.5,0.7404329]
[1641481704490,4.36309375,3377.9,3377.3,11.05]
[1641481704889,2.43743059,3377.9,3377.4,0.74126685]
[1641481705088,5.169,3378.6,3377.6,11.05]
[1641481705288,4.42806054,3378.5,3378.3,1.37648367]
[1641481705492,4.42806054,3378.5,3377.8,1.4799791]
[1641481706289,4.42806054,3378.5,3377.7,1.0]
[1641481706290,2.63426054,3378.5,3377.7,3.81129915]
[1641481706490,6.89758271,3379.0,3378.1,1.02204909]
[1641481706892,0.00454739,3378.6,3378.1,1.02204909]
[1641481707393,0.6757337,3379.0,3378.3,11.05]
[1641481707591,0.6757337,3379.0,3378.5,0.7397775]
[1641481707832,0.00227369,3378.9,3378.5,0.7397775]
[1641481708033,0.00230739,3379.0,3378.7,12.21305587]
[1641481708229,3.33582121,3379.3,3378.8,13.0844152]
[1641481708431,3.33582121,3379.3,3378.9,1.89466911]
[1641481708630,0.00170527,3379.2,3378.9,1.89466911]
[1641481708830,0.00170527,3379.2,3378.9,2.89466911]
[1641481709031,0.00113685,3379.1,3378.9,1.89466911]
[1641481709332,0.00113685,3379.1,3378.9,3.37409681]
[1641481709532,0.00113685,3379.1,3378.9,4.37409681]
[1641481710136,3.03695806,3380.0,3379.0,11.05]
[1641481710334,3.03695806,3379.9,3379.4,1.3824239]
[1641481710536,3.04150545,3379.9,3379.4,1.3824239]
[1641481711333,0.00454739,3379.9,3379.5,2.09782675]
[1641481711985,1.1757337,3381.0,3380.2,1.24021115]
[1641481712187,0.6757337,3381.0,3380.2,1.24021115]
[1641481712388,0.00511581,3380.8,3380.2,1.24021115]
[1641481712588,0.00511581,3380.8,3379.6,0.00170527]
[1641481712787,0.00454738,3380.7,3379.6,0.00170527]
[1641481713191,2.77712191,3380.9,3379.1,0.00454739]
[1641481713192,0.01247933,3380.3,3379.1,0.00454739]
[1641481713587,0.00170527,3380.2,3378.3,0.00909478]
[1641481713788,1.97735925,3379.6,3378.3,0.00909478]
[1641481714190,0.01239896,3379.5,3378.3,0.00909478]
[1641481714390,0.01239896,3379.5,3378.2,0.0096632]
[1641481714590,0.01239896,3379.5,3378.1,1.37181588]
[1641481714793,0.01239896,3379.5,3378.2,2.06586169]
[1641481714794,1.00023466,3378.4,3378.2,2.06586169]
[1641481714991,1.00023466,3378.4,3378.2,2.07552489]
[1641481715228,1.00023466,3378.4,3378.3,0.00909478]
[1641481715629,2.12788447,3379.0,3378.3,0.00909478]
[1641481715833,0.00086423,3378.4,3378.3,0.00909478]
[1641481716231,2.00120302,3378.6,3378.2,0.3096632]
[1641481716431,2.00120302,3378.6,3378.3,0.00909478]
[1641481716935,2.00120302,3378.8,3378.5,1.68873635]
[1641481717334,2.00120302,3378.8,3378.6,0.00738951]
[1641481717733,2.00120302,3378.8,3378.3,0.00909478]
[1641481718133,3.3368081,3378.8,3378.3,0.00909478]
[1641481718635,5.07790294,3378.8,3378.3,0.00909478]
[1641481718833,2.00120302,3378.8,3378.3,0.00909478]
[1641481719481,2.00120302,3378.8,3378.3,3.00909478]
[1641481719682,3.33609593,3379.5,3378.3,3.00909478]
[1641481719882,8.61923371,3381.1,3378.3,3.00909478]
[1641481719883,0.01223134,3380.0,3378.4,0.00852636]
[1641481720083,6.17,3380.2,3378.5,0.5]
[1641481720283,6.17,3380.2,3378.5,0.851]
[1641481720484,6.17,3380.2,3378.6,0.00738951]
[1641481720684,0.6757337,3381.0,3378.8,11.05]
[1641481720685,6.17,3380.1,3378.8,11.05]
[1641481720888,6.17,3380.1,3378.9,17.631]